[Event "Titled Tuesday Blitz December 27 Late 2022"]
[White "Kazakouski, Valery"]
[Black "Oparin, Grigoriy"]
[WhiteFideId "13507443"]
[BlackFideId "24125890"]
[WhiteElo "2539"]
[BlackElo "2667"]
[Result "0-1"]
[Round "05"]
[TimeControl "180+2"]
[Date "2022.12.27"]
[WhiteClock "0:00:02"]
[BlackClock "0:00:10"]

1. Nf3 {[%clk 0:03:00]}  Nf6 {[%clk 0:02:58]} 2. c4 {[%clk 0:03:00]}  e6 {[%clk 0:02:58]} 3. g3 {[%clk 0:03:01]}  d5 {[%clk 0:02:58]} 4. b3 {[%clk 0:03:01]}  d4 {[%clk 0:02:55]} 5. e3 {[%clk 0:03:02]}  c5 {[%clk 0:02:56]} 6. exd4 {[%clk 0:03:02]}  cxd4 {[%clk 0:02:56]} 7. Bg2 {[%clk 0:03:03]}  Nc6 {[%clk 0:02:56]} 8. O-O {[%clk 0:03:04]}  Bd6 {[%clk 0:02:51]} 9. d3 {[%clk 0:03:04]}  h6 {[%clk 0:02:48]} 10. Ba3 {[%clk 0:03:04]}  O-O {[%clk 0:02:47]} 11. Re1 {[%clk 0:03:04]}  Re8 {[%clk 0:02:46]} 12. Bxd6 {[%clk 0:03:04]}  Qxd6 {[%clk 0:02:47]} 13. a3 {[%clk 0:03:05]}  a5 {[%clk 0:02:46]} 14. Nbd2 {[%clk 0:03:05]}  e5 {[%clk 0:02:46]} 15. Qc2 {[%clk 0:03:05]}  Bf5 {[%clk 0:02:46]} 16. c5 {[%clk 0:03:03]}  Qc7 {[%clk 0:02:43]} 17. Nc4 {[%clk 0:02:52]}  Bh7 {[%clk 0:02:40]} 18. Nfd2 {[%clk 0:02:48]}  Re7 {[%clk 0:02:35]} 19. Rab1 {[%clk 0:02:48]}  Rd8 {[%clk 0:02:30]} 20. b4 {[%clk 0:02:47]}  axb4 {[%clk 0:02:31]} 21. axb4 {[%clk 0:02:48]}  Nd5 {[%clk 0:02:30]} 22. Bxd5 {[%clk 0:02:31]}  Rxd5 {[%clk 0:02:31]} 23. Qb3 {[%clk 0:02:32]}  Rd8 {[%clk 0:02:25]} 24. Ra1 {[%clk 0:02:28]}  Bf5 {[%clk 0:02:12]} 25. Ne4 {[%clk 0:01:41]}  Be6 {[%clk 0:02:06]} 26. b5 {[%clk 0:01:36]}  Na5 {[%clk 0:01:49]} 27. Rxa5 {[%clk 0:01:30]}  Bxc4 {[%clk 0:01:50]} 28. Qa3 {[%clk 0:01:22]}  Bd5 {[%clk 0:01:39]} 29. Ra7 {[%clk 0:01:21]}  Qc8 {[%clk 0:01:34]} 30. c6 {[%clk 0:01:17]}  Rc7 {[%clk 0:01:35]} 31. cxb7 {[%clk 0:00:51]}  Rxb7 {[%clk 0:01:36]} 32. Rxb7 {[%clk 0:00:38]}  Qxb7 {[%clk 0:01:36]} 33. Qa6 {[%clk 0:00:19]}  Qd7 {[%clk 0:01:16]} 34. b6 {[%clk 0:00:14]}  Ra8 {[%clk 0:01:15]} 35. b7 {[%clk 0:00:07]}  Bxb7 {[%clk 0:01:12]} 36. Qd6 {[%clk 0:00:07]}  Qe8 {[%clk 0:00:29]} 37. Nc5 {[%clk 0:00:07]}  Bc6 {[%clk 0:00:29]} 38. f4 {[%clk 0:00:06]}  Rd8 {[%clk 0:00:13]} 39. Qxe5 {[%clk 0:00:06]}  Qf8 {[%clk 0:00:11]} 40. Rc1 {[%clk 0:00:02]}  Ba8 {[%clk 0:00:10]} 41. Qe2 {[%clk 0:00:01]}  Qd6 {[%clk 0:00:10]} 42. Ne4 {[%clk 0:00:02]}  Qd5 {[%clk 0:00:10]} 0-1


[Site "https://www.chess.com"]

[Event "Titled Tuesday Blitz December 27 Late 2022"]
[White "Lenderman, Aleksandr"]
[Black "Kozin, Yuri"]
[WhiteFideId "2021285"]
[BlackFideId "4129920"]
[WhiteElo "2572"]
[BlackElo "2251"]
[Result "1-0"]
[Round "05"]
[TimeControl "180+2"]
[Date "2022.12.27"]
[WhiteClock "0:01:33"]
[BlackClock "0:00:19"]

1. Nf3 {[%clk 0:03:00]}  c5 {[%clk 0:02:59]} 2. c4 {[%clk 0:02:58]}  Nf6 {[%clk 0:03:00]} 3. Nc3 {[%clk 0:02:57]}  e6 {[%clk 0:03:00]} 4. g3 {[%clk 0:02:56]}  a6 {[%clk 0:03:00]} 5. Bg2 {[%clk 0:02:55]}  Be7 {[%clk 0:03:00]} 6. O-O {[%clk 0:02:55]}  O-O {[%clk 0:03:01]} 7. d4 {[%clk 0:02:54]}  cxd4 {[%clk 0:03:02]} 8. Nxd4 {[%clk 0:02:54]}  Qc7 {[%clk 0:03:02]} 9. Bf4 {[%clk 0:02:52]}  d6 {[%clk 0:03:02]} 10. Nb3 {[%clk 0:02:39]}  Nbd7 {[%clk 0:02:58]} 11. Rc1 {[%clk 0:02:38]}  Nc5 {[%clk 0:02:44]} 12. Nxc5 {[%clk 0:02:37]}  Qxc5 {[%clk 0:02:44]} 13. Na4 {[%clk 0:02:37]}  Qa5 {[%clk 0:02:35]} 14. a3 {[%clk 0:02:28]}  Bd7 {[%clk 0:02:29]} 15. Nc3 {[%clk 0:02:28]}  Bc6 {[%clk 0:02:26]} 16. Bxc6 {[%clk 0:02:25]}  bxc6 {[%clk 0:02:26]} 17. Bxd6 {[%clk 0:02:24]}  Rfd8 {[%clk 0:02:20]} 18. c5 {[%clk 0:02:24]}  Ne8 {[%clk 0:02:00]} 19. Ne4 {[%clk 0:02:23]}  f5 {[%clk 0:01:54]} 20. Nd2 {[%clk 0:02:19]}  Bxd6 {[%clk 0:01:47]} 21. cxd6 {[%clk 0:02:20]}  Rxd6 {[%clk 0:01:48]} 22. Nc4 {[%clk 0:02:19]}  Rxd1 {[%clk 0:01:47]} 23. Nxa5 {[%clk 0:02:19]}  Rxf1+ {[%clk 0:01:44]} 24. Kxf1 {[%clk 0:02:18]}  Rd8 {[%clk 0:01:33]} 25. Ke1 {[%clk 0:02:16]}  Nf6 {[%clk 0:01:28]} 26. Rxc6 {[%clk 0:02:14]}  Kf7 {[%clk 0:01:14]} 27. Rxa6 {[%clk 0:02:12]}  Rb8 {[%clk 0:01:11]} 28. b4 {[%clk 0:02:09]}  Ne4 {[%clk 0:01:09]} 29. Nc6 {[%clk 0:02:07]}  Rb5 {[%clk 0:01:04]} 30. Nd8+ {[%clk 0:02:05]}  Ke7 {[%clk 0:01:01]} 31. Nxe6 {[%clk 0:02:06]}  Rd5 {[%clk 0:00:56]} 32. Nf4 {[%clk 0:02:01]}  Rd4 {[%clk 0:00:51]} 33. f3 {[%clk 0:01:59]}  Nc3 {[%clk 0:00:49]} 34. Rc6 {[%clk 0:01:57]}  Rd1+ {[%clk 0:00:49]} 35. Kf2 {[%clk 0:01:58]}  Nb5 {[%clk 0:00:48]} 36. a4 {[%clk 0:01:54]}  Nd4 {[%clk 0:00:47]} 37. Rc4 {[%clk 0:01:54]}  g5 {[%clk 0:00:44]} 38. Nd3 {[%clk 0:01:52]}  Nb3 {[%clk 0:00:43]} 39. a5 {[%clk 0:01:49]}  Ra1 {[%clk 0:00:40]} 40. Rc7+ {[%clk 0:01:45]}  Kf6 {[%clk 0:00:36]} 41. Rxh7 {[%clk 0:01:46]}  Ra2 {[%clk 0:00:30]} 42. Ke3 {[%clk 0:01:46]}  Ra4 {[%clk 0:00:25]} 43. Rh6+ {[%clk 0:01:44]}  Kg7 {[%clk 0:00:25]} 44. Rc6 {[%clk 0:01:44]}  Ra2 {[%clk 0:00:23]} 45. Rc3 {[%clk 0:01:43]}  Na1 {[%clk 0:00:20]} 46. h4 {[%clk 0:01:40]}  Nc2+ {[%clk 0:00:20]} 47. Rxc2 {[%clk 0:01:37]}  Rxc2 {[%clk 0:00:20]} 48. hxg5 {[%clk 0:01:37]}  Kg6 {[%clk 0:00:20]} 49. f4 {[%clk 0:01:38]}  Ra2 {[%clk 0:00:19]} 50. Kd4 {[%clk 0:01:36]}  Rxe2 {[%clk 0:00:19]} 51. a6 {[%clk 0:01:37]}  Ra2 {[%clk 0:00:19]} 52. b5 {[%clk 0:01:37]}  Kh5 {[%clk 0:00:19]} 53. Kc5 {[%clk 0:01:35]}  Kg4 {[%clk 0:00:20]} 54. g6 {[%clk 0:01:34]}  Ra3 {[%clk 0:00:19]} 55. g7 {[%clk 0:01:33]} 1-0


[Site "https://www.chess.com"]

[Event "Titled Tuesday Blitz December 27 Late 2022"]
[White "Liu, Casper"]
[Black "Adla, Diego"]
[WhiteFideId "1454153"]
[BlackFideId "100072"]
[WhiteElo "2278"]
[BlackElo "2383"]
[Result "0-1"]
[Round "05"]
[TimeControl "180+2"]
[Date "2022.12.27"]
[WhiteClock "0:01:37"]
[BlackClock "0:02:06"]

1. b3 {[%clk 0:02:52]}  e5 {[%clk 0:02:50]} 2. Bb2 {[%clk 0:02:53]}  d6 {[%clk 0:02:50]} 3. g3 {[%clk 0:02:53]}  Nf6 {[%clk 0:02:49]} 4. Bg2 {[%clk 0:02:54]}  g6 {[%clk 0:02:50]} 5. c4 {[%clk 0:02:55]}  Bg7 {[%clk 0:02:49]} 6. Nf3 {[%clk 0:02:54]}  O-O {[%clk 0:02:49]} 7. O-O {[%clk 0:02:54]}  Qe7 {[%clk 0:02:49]} 8. d3 {[%clk 0:02:54]}  c6 {[%clk 0:02:48]} 9. Nc3 {[%clk 0:02:53]}  Nbd7 {[%clk 0:02:48]} 10. Rc1 {[%clk 0:02:53]}  Nc5 {[%clk 0:02:48]} 11. b4 {[%clk 0:02:52]}  Ne6 {[%clk 0:02:47]} 12. Qb3 {[%clk 0:02:51]}  a6 {[%clk 0:02:43]} 13. Rfd1 {[%clk 0:02:49]}  h5 {[%clk 0:02:43]} 14. d4 {[%clk 0:02:31]}  exd4 {[%clk 0:02:36]} 15. Nxd4 {[%clk 0:02:32]}  Nxd4 {[%clk 0:02:35]} 16. Rxd4 {[%clk 0:02:33]}  Be6 {[%clk 0:02:31]} 17. Rcd1 {[%clk 0:02:26]}  Rad8 {[%clk 0:02:25]} 18. R4d2 {[%clk 0:02:19]}  b5 {[%clk 0:02:24]} 19. a4 {[%clk 0:02:04]}  Bxc4 {[%clk 0:02:23]} 20. Qc2 {[%clk 0:02:04]}  d5 {[%clk 0:02:23]} 21. axb5 {[%clk 0:02:03]}  axb5 {[%clk 0:02:22]} 22. e3 {[%clk 0:02:02]}  Qxb4 {[%clk 0:02:21]} 23. e4 {[%clk 0:02:00]}  Bb3 {[%clk 0:02:20]} 24. Qc1 {[%clk 0:01:53]}  Bxd1 {[%clk 0:02:19]} 25. Ba3 {[%clk 0:01:54]}  Qc4 {[%clk 0:02:17]} 26. Bf1 {[%clk 0:01:50]}  Qb3 {[%clk 0:02:12]} 27. Bxf8 {[%clk 0:01:49]}  Rxf8 {[%clk 0:02:08]} 28. Rxd1 {[%clk 0:01:37]}  Nxe4 {[%clk 0:02:07]} 29. Nxe4 {[%clk 0:01:37]}  dxe4 {[%clk 0:02:08]} 30. Qxc6 {[%clk 0:01:37]}  Qxd1 {[%clk 0:02:06]} 0-1


[Site "https://www.chess.com"]

[Event "Titled Tuesday Blitz December 27 Late 2022"]
[White "Lorenzo De La Riva, Lazaro"]
[Black "Mendez Fortes, Eduardo Jesus"]
[WhiteFideId "2268809"]
[BlackFideId "3502376"]
[WhiteElo "2404"]
[BlackElo "2250"]
[Result "1/2-1/2"]
[Round "05"]
[TimeControl "180+2"]
[Date "2022.12.27"]
[WhiteClock "0:00:28"]
[BlackClock "0:00:36"]

1. Nf3 {[%clk 0:03:00]}  d5 {[%clk 0:02:58]} 2. g3 {[%clk 0:03:01]}  Nf6 {[%clk 0:02:57]} 3. Bg2 {[%clk 0:03:02]}  e6 {[%clk 0:02:58]} 4. O-O {[%clk 0:03:02]}  Be7 {[%clk 0:02:58]} 5. c4 {[%clk 0:03:02]}  O-O {[%clk 0:02:59]} 6. b3 {[%clk 0:03:01]}  d4 {[%clk 0:02:59]} 7. e3 {[%clk 0:03:00]}  c5 {[%clk 0:03:00]} 8. exd4 {[%clk 0:03:00]}  cxd4 {[%clk 0:03:01]} 9. d3 {[%clk 0:03:00]}  Nc6 {[%clk 0:03:01]} 10. Re1 {[%clk 0:03:00]}  Re8 {[%clk 0:02:58]} 11. Ne5 {[%clk 0:02:57]}  Nxe5 {[%clk 0:02:58]} 12. Rxe5 {[%clk 0:02:58]}  Nd7 {[%clk 0:02:58]} 13. Re1 {[%clk 0:02:57]}  e5 {[%clk 0:02:58]} 14. Nd2 {[%clk 0:02:37]}  a5 {[%clk 0:02:55]} 15. a3 {[%clk 0:02:31]}  Bf8 {[%clk 0:02:53]} 16. Ne4 {[%clk 0:02:25]}  Ra7 {[%clk 0:02:49]} 17. g4 {[%clk 0:02:21]}  b6 {[%clk 0:02:49]} 18. Ng3 {[%clk 0:02:10]}  Nc5 {[%clk 0:02:49]} 19. Rb1 {[%clk 0:02:03]}  Bd7 {[%clk 0:02:46]} 20. b4 {[%clk 0:01:47]}  Na4 {[%clk 0:02:45]} 21. Bd2 {[%clk 0:01:36]}  Nc3 {[%clk 0:02:41]} 22. Bxc3 {[%clk 0:01:36]}  dxc3 {[%clk 0:02:42]} 23. h3 {[%clk 0:01:17]}  axb4 {[%clk 0:02:40]} 24. axb4 {[%clk 0:01:17]}  Ra2 {[%clk 0:02:36]} 25. Re2 {[%clk 0:01:06]}  c2 {[%clk 0:02:35]} 26. Rxc2 {[%clk 0:01:03]}  Ba4 {[%clk 0:02:36]} 27. Rxa2 {[%clk 0:01:02]}  Bxd1 {[%clk 0:02:37]} 28. Rxd1 {[%clk 0:01:02]}  Bxb4 {[%clk 0:02:37]} 29. Bd5 {[%clk 0:01:02]}  Bc5 {[%clk 0:02:33]} 30. Ne4 {[%clk 0:01:01]}  Bd4 {[%clk 0:02:30]} 31. Ra7 {[%clk 0:01:00]}  Rf8 {[%clk 0:02:30]} 32. Rb7 {[%clk 0:00:59]}  h5 {[%clk 0:02:19]} 33. Kg2 {[%clk 0:00:53]}  b5 {[%clk 0:02:04]} 34. Rxb5 {[%clk 0:00:50]}  Kh8 {[%clk 0:02:03]} 35. Rdb1 {[%clk 0:00:44]}  f5 {[%clk 0:02:01]} 36. gxf5 {[%clk 0:00:44]}  Kh7 {[%clk 0:01:56]} 37. Rb8 {[%clk 0:00:25]}  Qxb8 {[%clk 0:01:25]} 38. Rxb8 {[%clk 0:00:26]}  Rxb8 {[%clk 0:01:25]} 39. f6 {[%clk 0:00:27]}  gxf6 {[%clk 0:01:12]} 40. Nxf6+ {[%clk 0:00:27]}  Kg6 {[%clk 0:01:11]} 41. Ne4 {[%clk 0:00:27]}  Rc8 {[%clk 0:01:06]} 42. Kf3 {[%clk 0:00:27]}  Rc7 {[%clk 0:01:05]} 43. Kg2 {[%clk 0:00:27]}  h4 {[%clk 0:01:03]} 44. Be6 {[%clk 0:00:26]}  Rg7 {[%clk 0:01:01]} 45. Bg4 {[%clk 0:00:25]}  Ra7 {[%clk 0:01:00]} 46. Be2 {[%clk 0:00:24]}  Kf5 {[%clk 0:00:58]} 47. Kf3 {[%clk 0:00:22]}  Ra1 {[%clk 0:00:56]} 48. Nd6+ {[%clk 0:00:21]}  Ke6 {[%clk 0:00:55]} 49. Ne4 {[%clk 0:00:21]}  Re1 {[%clk 0:00:54]} 50. Ng5+ {[%clk 0:00:20]}  Kf5 {[%clk 0:00:53]} 51. Ne4 {[%clk 0:00:20]}  Kg6 {[%clk 0:00:53]} 52. Nd6 {[%clk 0:00:20]}  Rg1 {[%clk 0:00:45]} 53. Ne4 {[%clk 0:00:19]}  Kf5 {[%clk 0:00:45]} 54. Nd6+ {[%clk 0:00:19]}  Ke6 {[%clk 0:00:46]} 55. Ne4 {[%clk 0:00:20]}  Rg7 {[%clk 0:00:38]} 56. Nd2 {[%clk 0:00:19]}  Rf7+ {[%clk 0:00:37]} 57. Ke4 {[%clk 0:00:19]}  Rxf2 {[%clk 0:00:36]} 58. Bg4+ {[%clk 0:00:19]}  Kd6 {[%clk 0:00:34]} 59. Nf3 {[%clk 0:00:20]}  Re2+ {[%clk 0:00:23]} 60. Kf5 {[%clk 0:00:19]}  Re3 {[%clk 0:00:23]} 61. Nxh4 {[%clk 0:00:17]}  Rxd3 {[%clk 0:00:23]} 62. Nf3 {[%clk 0:00:17]}  Re3 {[%clk 0:00:22]} 63. h4 {[%clk 0:00:16]}  Bc3 {[%clk 0:00:20]} 64. Ng5 {[%clk 0:00:15]}  Ba1 {[%clk 0:00:16]} 65. Ne4+ {[%clk 0:00:15]}  Ke7 {[%clk 0:00:16]} 66. h5 {[%clk 0:00:16]}  Re1 {[%clk 0:00:16]} 67. h6 {[%clk 0:00:17]}  Rh1 {[%clk 0:00:16]} 68. Kg6 {[%clk 0:00:17]}  Kf8 {[%clk 0:00:15]} 69. Bh5 {[%clk 0:00:17]}  Kg8 {[%clk 0:00:15]} 70. h7+ {[%clk 0:00:17]}  Kh8 {[%clk 0:00:15]} 71. Ng5 {[%clk 0:00:17]}  Rg1 {[%clk 0:00:15]} 72. Kh6 {[%clk 0:00:17]}  Rxg5 {[%clk 0:00:15]} 73. Kxg5 {[%clk 0:00:16]}  Kxh7 {[%clk 0:00:16]} 74. Kf5 {[%clk 0:00:15]}  Bd4 {[%clk 0:00:16]} 75. Bf3 {[%clk 0:00:14]}  Kg7 {[%clk 0:00:16]} 76. Bd5 {[%clk 0:00:15]}  Kf8 {[%clk 0:00:17]} 77. Be4 {[%clk 0:00:16]}  Ke7 {[%clk 0:00:17]} 78. Bd5 {[%clk 0:00:17]}  Kd6 {[%clk 0:00:18]} 79. Bg8 {[%clk 0:00:17]}  Kc5 {[%clk 0:00:19]} 80. Be6 {[%clk 0:00:17]}  Kb4 {[%clk 0:00:19]} 81. Ke4 {[%clk 0:00:18]}  Kc5 {[%clk 0:00:20]} 82. Bd5 {[%clk 0:00:19]}  Bb2 {[%clk 0:00:20]} 83. Bg8 {[%clk 0:00:19]}  Kd6 {[%clk 0:00:21]} 84. Bd5 {[%clk 0:00:20]}  Ba3 {[%clk 0:00:22]} 85. Bg8 {[%clk 0:00:20]}  Bc5 {[%clk 0:00:23]} 86. Bd5 {[%clk 0:00:21]}  Kc7 {[%clk 0:00:23]} 87. Bg8 {[%clk 0:00:21]}  Bd6 {[%clk 0:00:24]} 88. Bd5 {[%clk 0:00:22]}  Kb6 {[%clk 0:00:24]} 89. Bg8 {[%clk 0:00:22]}  Kc5 {[%clk 0:00:25]} 90. Bd5 {[%clk 0:00:23]}  Bc7 {[%clk 0:00:25]} 91. Bg8 {[%clk 0:00:23]}  Kb4 {[%clk 0:00:26]} 92. Bd5 {[%clk 0:00:24]}  Kc3 {[%clk 0:00:27]} 93. Bg8 {[%clk 0:00:24]}  Kd2 {[%clk 0:00:28]} 94. Bd5 {[%clk 0:00:24]}  Kc3 {[%clk 0:00:28]} 95. c5 {[%clk 0:00:25]}  Kb4 {[%clk 0:00:28]} 96. c6 {[%clk 0:00:25]}  Kc5 {[%clk 0:00:29]} 97. Bf7 {[%clk 0:00:24]}  Kxc6 {[%clk 0:00:30]} 98. Bg6 {[%clk 0:00:25]}  Kc5 {[%clk 0:00:31]} 99. Bf5 {[%clk 0:00:25]}  Bd6 {[%clk 0:00:32]} 100. Bg6 {[%clk 0:00:26]}  Kc6 {[%clk 0:00:32]} 101. Bf5 {[%clk 0:00:27]}  Kc7 {[%clk 0:00:33]} 102. Bg6 {[%clk 0:00:27]}  Kd8 {[%clk 0:00:34]} 103. Bf5 {[%clk 0:00:28]}  Ke7 {[%clk 0:00:35]} 104. Bh7 {[%clk 0:00:28]}  Kf6 {[%clk 0:00:36]} 105. Bg8 {[%clk 0:00:28]}  Bb8 {[%clk 0:00:37]} 106. Bd5 {[%clk 0:00:29]}  Kg5 {[%clk 0:00:38]} 107. Bc6 {[%clk 0:00:29]}  Kf6 {[%clk 0:00:39]} 108. Bd5 {[%clk 0:00:29]}  Ke7 {[%clk 0:00:39]} 109. Ba8 {[%clk 0:00:28]}  Kd6 {[%clk 0:00:40]} 110. Bd5 {[%clk 0:00:28]}  Kc5 {[%clk 0:00:41]} 111. Ba8 {[%clk 0:00:28]}  Kb6 {[%clk 0:00:36]} 1/2-1/2


[Site "https://www.chess.com"]

[Event "Titled Tuesday Blitz December 27 Late 2022"]
[White "Mekhitarian, Krikor Sevag"]
[Black "Martinez Reyes, Pedro Ramon"]
[WhiteFideId "2107660"]
[BlackFideId "3901807"]
[WhiteElo "2537"]
[BlackElo "2376"]
[Result "1-0"]
[Round "05"]
[TimeControl "180+2"]
[Date "2022.12.27"]
[WhiteClock "0:01:02"]
[BlackClock "0:01:11"]

1. Nf3 {[%clk 0:03:00]}  f5 {[%clk 0:02:59]} 2. d3 {[%clk 0:02:59]}  Nc6 {[%clk 0:02:59]} 3. d4 {[%clk 0:02:59]}  e6 {[%clk 0:02:57]} 4. c4 {[%clk 0:02:56]}  Nf6 {[%clk 0:02:57]} 5. a3 {[%clk 0:02:56]}  d5 {[%clk 0:02:53]} 6. Nc3 {[%clk 0:02:56]}  Be7 {[%clk 0:02:49]} 7. Bf4 {[%clk 0:02:55]}  a6 {[%clk 0:02:41]} 8. e3 {[%clk 0:02:55]}  O-O {[%clk 0:02:40]} 9. Rc1 {[%clk 0:02:55]}  Na5 {[%clk 0:02:34]} 10. cxd5 {[%clk 0:02:50]}  exd5 {[%clk 0:02:33]} 11. Bd3 {[%clk 0:02:45]}  c6 {[%clk 0:02:33]} 12. Ne5 {[%clk 0:02:39]}  Ne4 {[%clk 0:02:29]} 13. f3 {[%clk 0:02:28]}  Nxc3 {[%clk 0:02:20]} 14. Rxc3 {[%clk 0:02:29]}  Bh4+ {[%clk 0:02:16]} 15. g3 {[%clk 0:02:26]}  g5 {[%clk 0:02:07]} 16. gxh4 {[%clk 0:02:09]}  gxf4 {[%clk 0:02:07]} 17. Rg1+ {[%clk 0:01:49]}  Kh8 {[%clk 0:02:07]} 18. Qe2 {[%clk 0:01:50]}  fxe3 {[%clk 0:01:53]} 19. f4 {[%clk 0:01:08]}  Qxh4+ {[%clk 0:01:51]} 20. Kd1 {[%clk 0:01:08]}  Be6 {[%clk 0:01:11]} 21. Qxe3 {[%clk 0:01:08]}  Rg8 {[%clk 0:01:11]} 22. Nf7+ {[%clk 0:01:02]} 1-0


[Site "https://www.chess.com"]

[Event "Titled Tuesday Blitz December 27 Late 2022"]
[White "Moskvin, Anatoly"]
[Black "reevecanada"]
[WhiteFideId "24199990"]
[WhiteElo "2189"]
[BlackElo "2430"]
[Result "1-0"]
[Round "05"]
[TimeControl "180+2"]
[Date "2022.12.27"]
[WhiteClock "0:00:23"]
[BlackClock "0:00:15"]

1. e4 {[%clk 0:03:00]}  c5 {[%clk 0:02:59]} 2. Nf3 {[%clk 0:02:59]}  d6 {[%clk 0:02:56]} 3. d4 {[%clk 0:02:59]}  cxd4 {[%clk 0:02:57]} 4. Nxd4 {[%clk 0:03:00]}  Nf6 {[%clk 0:02:58]} 5. f3 {[%clk 0:03:01]}  a6 {[%clk 0:02:57]} 6. c4 {[%clk 0:03:01]}  Nc6 {[%clk 0:02:55]} 7. Nc3 {[%clk 0:03:01]}  Nxd4 {[%clk 0:02:54]} 8. Qxd4 {[%clk 0:03:01]}  Qc7 {[%clk 0:02:50]} 9. Bg5 {[%clk 0:02:56]}  e5 {[%clk 0:02:41]} 10. Qd2 {[%clk 0:02:55]}  Be6 {[%clk 0:02:38]} 11. Rc1 {[%clk 0:02:53]}  h6 {[%clk 0:02:36]} 12. Bxf6 {[%clk 0:02:51]}  gxf6 {[%clk 0:02:37]} 13. Be2 {[%clk 0:02:17]}  h5 {[%clk 0:02:27]} 14. O-O {[%clk 0:02:10]}  Bh6 {[%clk 0:02:25]} 15. f4 {[%clk 0:02:11]}  exf4 {[%clk 0:02:05]} 16. Bf3 {[%clk 0:02:08]}  Bg4 {[%clk 0:01:54]} 17. Nd5 {[%clk 0:02:07]}  Qc5+ {[%clk 0:01:49]} 18. Kh1 {[%clk 0:02:07]}  Bg5 {[%clk 0:01:49]} 19. b4 {[%clk 0:01:57]}  Qc6 {[%clk 0:01:44]} 20. h4 {[%clk 0:01:54]}  Bxh4 {[%clk 0:01:37]} 21. Qxf4 {[%clk 0:01:54]}  Rg8 {[%clk 0:01:27]} 22. c5 {[%clk 0:01:34]}  Bg5 {[%clk 0:01:20]} 23. Nxf6+ {[%clk 0:01:19]}  Kd8 {[%clk 0:00:56]} 24. Qh2 {[%clk 0:00:51]}  Bxf6 {[%clk 0:00:48]} 25. Bxg4 {[%clk 0:00:47]}  Be5 {[%clk 0:00:31]} 26. Qh4+ {[%clk 0:00:44]}  f6 {[%clk 0:00:30]} 27. Bh3 {[%clk 0:00:25]}  Ke7 {[%clk 0:00:23]} 28. cxd6+ {[%clk 0:00:24]}  Qxd6 {[%clk 0:00:22]} 29. Rfd1 {[%clk 0:00:24]}  Rad8 {[%clk 0:00:14]} 30. Rxd6 {[%clk 0:00:24]}  Rxd6 {[%clk 0:00:15]} 31. Qxh5 {[%clk 0:00:23]}  Kd8 {[%clk 0:00:16]} 32. Qf7 {[%clk 0:00:23]}  Rh8 {[%clk 0:00:15]} 33. Rc8# {[%clk 0:00:23]} 1-0


[Site "https://www.chess.com"]

[Event "Titled Tuesday Blitz December 27 Late 2022"]
[White "Myers, Dominique"]
[Black "Senthil, Maran K"]
[WhiteFideId "2041715"]
[BlackFideId "25035681"]
[WhiteElo "2042"]
[BlackElo "2209"]
[Result "1-0"]
[Round "05"]
[TimeControl "180+2"]
[Date "2022.12.27"]
[WhiteClock "0:01:31"]
[BlackClock "0:00:03"]

1. e4 {[%clk 0:02:59]}  e6 {[%clk 0:02:51]} 2. Nc3 {[%clk 0:02:58]}  d5 {[%clk 0:02:52]} 3. Nf3 {[%clk 0:02:58]}  Nf6 {[%clk 0:02:49]} 4. e5 {[%clk 0:02:58]}  Nfd7 {[%clk 0:02:49]} 5. d4 {[%clk 0:02:59]}  c5 {[%clk 0:02:49]} 6. dxc5 {[%clk 0:03:00]}  Bxc5 {[%clk 0:02:49]} 7. Bd3 {[%clk 0:03:00]}  Nc6 {[%clk 0:02:49]} 8. Bf4 {[%clk 0:03:00]}  h6 {[%clk 0:02:41]} 9. h4 {[%clk 0:03:00]}  Be7 {[%clk 0:02:35]} 10. h5 {[%clk 0:02:59]}  a6 {[%clk 0:02:30]} 11. Rh3 {[%clk 0:02:58]}  b5 {[%clk 0:02:29]} 12. Rg3 {[%clk 0:02:57]}  Bf8 {[%clk 0:02:24]} 13. Qd2 {[%clk 0:02:55]}  Bb7 {[%clk 0:02:23]} 14. Ne2 {[%clk 0:02:54]}  Qc7 {[%clk 0:02:18]} 15. O-O-O {[%clk 0:02:45]}  Ncxe5 {[%clk 0:02:11]} 16. Kb1 {[%clk 0:02:45]}  Rc8 {[%clk 0:02:01]} 17. Ned4 {[%clk 0:02:44]}  Nc4 {[%clk 0:01:54]} 18. Bxc4 {[%clk 0:02:33]}  Qxc4 {[%clk 0:01:55]} 19. Ne5 {[%clk 0:02:24]}  Nxe5 {[%clk 0:01:44]} 20. Bxe5 {[%clk 0:02:25]}  f6 {[%clk 0:01:36]} 21. Rc3 {[%clk 0:02:24]}  Qb4 {[%clk 0:01:29]} 22. a3 {[%clk 0:02:24]}  Qe7 {[%clk 0:01:15]} 23. Rxc8+ {[%clk 0:02:21]}  Bxc8 {[%clk 0:01:16]} 24. Bg3 {[%clk 0:02:20]}  Bd7 {[%clk 0:00:57]} 25. Re1 {[%clk 0:02:20]}  e5 {[%clk 0:00:55]} 26. f4 {[%clk 0:02:17]}  e4 {[%clk 0:00:53]} 27. Nb3 {[%clk 0:02:17]}  Qf7 {[%clk 0:00:47]} 28. f5 {[%clk 0:02:12]}  Be7 {[%clk 0:00:44]} 29. Nd4 {[%clk 0:02:09]}  O-O {[%clk 0:00:43]} 30. Bf4 {[%clk 0:02:09]}  Qxh5 {[%clk 0:00:40]} 31. g4 {[%clk 0:01:56]}  Qxg4 {[%clk 0:00:38]} 32. Qf2 {[%clk 0:01:55]}  Bc5 {[%clk 0:00:32]} 33. c3 {[%clk 0:01:52]}  Bxd4 {[%clk 0:00:30]} 34. cxd4 {[%clk 0:01:51]}  Qxf5 {[%clk 0:00:29]} 35. Qe3 {[%clk 0:01:49]}  g5 {[%clk 0:00:23]} 36. Bd6 {[%clk 0:01:49]}  Rc8 {[%clk 0:00:18]} 37. Rh1 {[%clk 0:01:49]}  Qg6 {[%clk 0:00:18]} 38. Bc5 {[%clk 0:01:47]}  f5 {[%clk 0:00:18]} 39. Qg3 {[%clk 0:01:48]}  f4 {[%clk 0:00:18]} 40. Qe1 {[%clk 0:01:48]}  e3+ {[%clk 0:00:18]} 41. Ka2 {[%clk 0:01:48]}  Re8 {[%clk 0:00:17]} 42. Rh2 {[%clk 0:01:44]}  f3 {[%clk 0:00:16]} 43. Qh1 {[%clk 0:01:44]}  Kh7 {[%clk 0:00:14]} 44. Qxf3 {[%clk 0:01:44]}  Qf5 {[%clk 0:00:11]} 45. Qh5 {[%clk 0:01:41]}  Qg6 {[%clk 0:00:11]} 46. Qf3 {[%clk 0:01:42]}  Bf5 {[%clk 0:00:10]} 47. b3 {[%clk 0:01:38]}  Be4 {[%clk 0:00:10]} 48. Qg3 {[%clk 0:01:36]}  Qf7 {[%clk 0:00:05]} 49. Kb2 {[%clk 0:01:36]}  Bg6 {[%clk 0:00:03]} 50. Qxg5 {[%clk 0:01:31]}  e2 {[%clk 0:00:03]} 51. Qxh6+ {[%clk 0:01:30]}  Kg8 {[%clk 0:00:03]} 52. Qh8# {[%clk 0:01:31]} 1-0


[Site "https://www.chess.com"]

[Event "Titled Tuesday Blitz December 27 Late 2022"]
[White "Novikova, Galina"]
[Black "Yurovskykh, Oleksandr"]
[WhiteFideId "4157095"]
[BlackFideId "14134020"]
[WhiteElo "2073"]
[BlackElo "2328"]
[Result "0-1"]
[Round "05"]
[TimeControl "180+2"]
[Date "2022.12.27"]
[WhiteClock "0:01:05"]
[BlackClock "0:00:46"]

1. e4 {[%clk 0:02:47]}  d5 {[%clk 0:02:55]} 2. exd5 {[%clk 0:02:47]}  Qxd5 {[%clk 0:02:54]} 3. Nf3 {[%clk 0:02:47]}  Bg4 {[%clk 0:02:54]} 4. Be2 {[%clk 0:02:48]}  Nc6 {[%clk 0:02:53]} 5. d4 {[%clk 0:02:48]}  O-O-O {[%clk 0:02:53]} 6. Be3 {[%clk 0:02:48]}  e5 {[%clk 0:02:47]} 7. c4 {[%clk 0:02:49]}  Qa5+ {[%clk 0:02:44]} 8. Bd2 {[%clk 0:02:49]}  Bb4 {[%clk 0:02:42]} 9. d5 {[%clk 0:02:50]}  Bxf3 {[%clk 0:02:42]} 10. Bxf3 {[%clk 0:02:49]}  Nd4 {[%clk 0:02:42]} 11. a3 {[%clk 0:02:41]}  Bxd2+ {[%clk 0:02:34]} 12. Nxd2 {[%clk 0:02:41]}  Nf6 {[%clk 0:01:17]} 13. O-O {[%clk 0:02:40]}  Rhe8 {[%clk 0:01:10]} 14. b4 {[%clk 0:02:37]}  Qa6 {[%clk 0:01:08]} 15. b5 {[%clk 0:02:14]}  Qd6 {[%clk 0:01:02]} 16. a4 {[%clk 0:02:06]}  e4 {[%clk 0:00:51]} 17. Be2 {[%clk 0:01:46]}  e3 {[%clk 0:00:47]} 18. fxe3 {[%clk 0:01:31]}  Rxe3 {[%clk 0:00:48]} 19. Bg4+ {[%clk 0:01:05]}  Kb8 {[%clk 0:00:46]} 0-1


[Site "https://www.chess.com"]